fUSD/lending_fUSD_20260509
["ID","MTS","AMOUNT","RATE_DAILY","PERIOD"]
[421905170,1778319046000,-1973.0,0.00021,2]
[421905176,1778319046000,-696.0,0.00021,2]
[421905177,1778319046000,-1582.0,0.00021008,2]
[421905152,1778319046000,-395.0,0.00020603,2]
[421905172,1778319046000,-1897.0,0.00021,2]
[421905161,1778319046000,-1066.68029644,0.0002075,2]
[421905154,1778319046000,-1268.0,0.00020643,2]
[421905140,1778319046000,-161.0,0.00020216,2]
[421905150,1778319046000,-395.0,0.00020524,2]
[421905175,1778319046000,-343.0,0.00021,2]
[421905130,1778319046000,-312.0,0.0002,2]
[421905131,1778319046000,-212.0,0.0002,2]
[421905132,1778319046000,-186.0,0.0002,2]
[421905133,1778319046000,-1973.0,0.0002,2]
[421905135,1778319046000,-232.0,0.0002,2]
[421905134,1778319046000,-1897.0,0.0002,2]
[421905136,1778319046000,-343.0,0.0002,2]
[421905138,1778319046000,-199.13077124,0.0002,2]
[421905153,1778319046000,-395.0,0.00020611,2]
[421905137,1778319046000,-696.0,0.0002,2]
[421905141,1778319046000,-1613.0,0.0002026,2]
[421905143,1778319046000,-151.0,0.00020335,2]
[421905142,1778319046000,-5283.33737944,0.00020335,2]
[421905144,1778319046000,-151.0,0.00020335,2]
[421905145,1778319046000,-1182.8,0.00020381,2]
[421905147,1778319046000,-500.0,0.00020502,2]
[421905146,1778319046000,-500.0,0.00020502,2]
[421905148,1778319046000,-500.0,0.00020502,2]
[421905149,1778319046000,-395.0,0.00020503,2]
[421905139,1778319046000,-199.13077124,0.0002,2]
[421905178,1778319046000,-2885.11861993,0.00021181,2]
[421905173,1778319046000,-232.0,0.00021,2]
[421905179,1778319046000,-355.55,0.00021217,2]
[421905208,1778319046000,-186.0,0.00022,2]
[421905206,1778319046000,-312.0,0.00022,2]
[421905204,1778319046000,-150.01676561,0.00022,2]
[421905207,1778319046000,-212.0,0.00022,2]
[421905209,1778319046000,-1973.0,0.00022,2]
[421905212,1778319046000,-343.0,0.00022,2]
[421905211,1778319046000,-232.0,0.00022,2]
[421905213,1778319046000,-696.0,0.00022,2]
[421905217,1778319046000,-331.5304955,0.00022407,2]
[421905215,1778319046000,-1623.0,0.00022224,2]
[421905219,1778319046000,-331.5304955,0.00022407,2]
[421905216,1778319046000,-1182.8,0.00022353,2]
[421905214,1778319046000,-672.0,0.00022006,7]
[421905218,1778319046000,-331.5304955,0.00022407,2]
[421905220,1778319046000,-448.21,0.00022466,2]
[421905222,1778319046000,-1960.91,0.00022466,2]
[421905221,1778319046000,-1310.48,0.00022466,2]
[421905223,1778319046000,-304.12,0.00022466,2]
[421905224,1778319046000,-190.06,0.00022466,2]
[421905225,1778319046000,-1046.6,0.00022466,2]
[421905180,1778319046000,-151.0,0.00021412,2]
[421905205,1778319046000,-450.0,0.00022,2]
[421905203,1778319046000,-150.0,0.00022,2]
[421905210,1778319046000,-1897.0,0.00022,2]
[421905201,1778319046000,-1000.0,0.00021973,30]
[421905182,1778319046000,-227.856789,0.00021658,7]
[421905188,1778319046000,-1000.0,0.00021918,2]
[421905185,1778319046000,-5000.0,0.00021918,2]
[421905202,1778319046000,-1099.59,0.00022,2]
[421905186,1778319046000,-1000.0,0.00021918,5]
[421905226,1778319046000,-18774.94155417,0.000225,2]
[421905184,1778319046000,-150.0,0.00021834,2]
[421905183,1778319046000,-233.609131,0.00021766,7]
[421905187,1778319046000,-1000.0,0.00021918,2]
[421905191,1778319046000,-447.20395276,0.00021918,3]
[421905190,1778319046000,-25000.0,0.00021918,3]
[421905181,1778319046000,-151.0,0.00021412,2]
[421905193,1778319046000,-25000.0,0.00021918,3]
[421905192,1778319046000,-632.35677507,0.00021918,3]
[421905194,1778319046000,-151.0,0.00021918,2]
[421905197,1778319046000,-261.622889,0.00021918,2]
[421905195,1778319046000,-151.0,0.00021918,2]
[421905198,1778319046000,-240.42248,0.00021918,2]
[421905199,1778319046000,-25000.0,0.00021918,3]
[421905196,1778319046000,-151.0,0.00021918,2]
[421905189,1778319046000,-214.73073128,0.00021918,3]
[421905200,1778319046000,-239.349039,0.00021934,14]
[421905238,1778319047000,-500.0,0.00022973,2]
[421905239,1778319047000,-500.0,0.00022999,2]
[421905240,1778319047000,-500.0,0.00022999,2]
[421905235,1778319047000,-756.26890993,0.000229,2]
[421905237,1778319047000,-500.0,0.00022973,2]
[421905232,1778319047000,-4201.09254134,0.00022753,2]
[421905231,1778319047000,-4287.78097023,0.00022708,2]
[421905234,1778319047000,-150.0,0.00022834,2]
[421905236,1778319047000,-200.65703844,0.00022973,2]
[421905230,1778319047000,-244.8,0.000226,14]
[421905228,1778319047000,-151.0,0.000225,2]
[421905229,1778319047000,-151.0,0.000225,2]
[421905227,1778319047000,-17186.32607056,0.000225,2]
[421905241,1778319047000,-500.0,0.00022999,2]
[421905233,1778319047000,-214.67,0.000228,14]
[421905243,1778319047000,-439.2,0.00022999,2]
[421905255,1778319047000,-151.0,0.00016922,2]
[421905245,1778319047000,-608.0,0.00015178,2]
[421905263,1778319047000,-22327.18611826,0.00023,2]
[421905260,1778319047000,-581.0,0.00022006,7]
[421905259,1778319047000,-3445.55045774,0.00023,2]
[421905262,1778319047000,-4720.5395,0.00023,2]
[421905258,1778319047000,-2786.293386,0.00023,2]
[421905257,1778319047000,-5032.68776504,0.00023,2]
[421905261,1778319047000,-71.9978648,0.00023,2]
[421905254,1778319047000,-151.0,0.00016778,2]
[421905251,1778319047000,-39.21664306,0.00023,2]
[421905249,1778319047000,-24887.05280424,0.00023,2]
[421905247,1778319047000,-158.1571296,0.00023,2]
[421905246,1778319047000,-624.0,0.00020588,2]
[421905244,1778319047000,-7889.53185619,0.00023,2]
[421905256,1778319047000,-728.0,0.00022006,7]
[421905242,1778319047000,-500.0,0.00022999,2]
[421905264,1778319097000,-933.04,0.00012757,2]
[421905265,1778319168000,-2500.0,0.00013534,2]
[421905267,1778319250000,-500.0,0.00013633,2]
[421905266,1778319250000,-171.2,0.00012757,2]
[421905270,1778319250000,-156.66306913,0.00013633,2]
[421905268,1778319250000,-577.44494055,0.00013633,2]
[421905269,1778319250000,-500.0,0.00013633,2]
[421905271,1778319250000,-500.0,0.00013633,2]
[421905275,1778319250000,-500.0,0.00013633,2]
[421905273,1778319250000,-960.05,0.00012757,2]
[421905274,1778319250000,-405.6587072,0.00013633,2]
[421905276,1778319250000,-500.0,0.00013633,2]
[421905277,1778319250000,-134.2912928,0.00013633,2]
[421905272,1778319250000,-94.69199032,0.00013633,2]
[421905279,1778319252000,-250.0,0.00013633,2]
[421905280,1778319252000,-500.0,0.00013698,2]
[421905278,1778319252000,-300.0,0.00013632,2]
[421905283,1778319252000,-450.0,0.00013733,2]
[421905281,1778319252000,-500.0,0.00013698,2]
[421905282,1778319252000,-500.0,0.00013698,2]
[421905284,1778319253000,-214.73073128,0.00012757,2]
[421905289,1778319253000,-518.37029567,0.00014267,2]
[421905287,1778319253000,-500.0,0.00014267,2]
[421905288,1778319253000,-151.0,0.00014267,2]
[421905285,1778319253000,-50.0,0.00013733,2]
[421905291,1778319253000,-151.0,0.00014267,2]
[421905290,1778319253000,-151.0,0.00014267,2]
[421905293,1778319253000,-151.0,0.00014267,2]
[421905292,1778319253000,-151.0,0.00014267,2]
[421905294,1778319253000,-151.0,0.00014267,2]
[421905286,1778319253000,-250.0,0.00014033,2]
[421905300,1778319253000,-151.0,0.00014267,2]
[421905306,1778319253000,-171.2,0.00013698,2]
[421905304,1778319253000,-300.13856609,0.00014887,2]
[421905302,1778319253000,-243.2091256,0.00014267,2]
[421905305,1778319253000,-215.54423894,0.00014887,2]
[421905303,1778319253000,-547.00704242,0.00014501,2]
[421905295,1778319253000,-60.89897305,0.00014267,2]
[421905297,1778319253000,-151.0,0.00014267,2]
[421905298,1778319253000,-151.0,0.00014267,2]
[421905301,1778319253000,-500.0,0.00014267,2]
[421905299,1778319253000,-151.0,0.00014267,2]
[421905296,1778319253000,-90.10102695,0.00014267,2]
[421905314,1778319427000,-171.2,0.00013633,2]
[421905312,1778319427000,-150.0,0.00013632,2]
[421905311,1778319427000,-11.40906706,0.00012758,2]
[421905313,1778319427000,-9.79093294,0.00013633,2]
[421905310,1778319427000,-171.2,0.00012758,2]
[421905316,1778319428000,-169.58186588,0.00013698,2]
[421905315,1778319428000,-1.61813412,0.00013633,2]
[421905317,1778319428000,-171.2,0.00012757,2]
[421905319,1778319428000,-11.98186588,0.00013698,2]
[421905318,1778319428000,-159.21813412,0.00013698,2]
[421905320,1778319429000,-328.8,0.00013698,2]
[421905325,1778319510000,-43.38186588,0.00014815,2]
[421905324,1778319510000,-255.0,0.0001475,2]
[421905323,1778319510000,-30.41813412,0.00014267,2]
[421905321,1778319510000,-159.21813412,0.00013698,2]
[421905322,1778319510000,-169.58186588,0.00014267,2]
[421905326,1778319511000,-328.8,0.00012757,2]
[421905327,1778319511000,-328.8,0.00012757,2]
[421905334,1778319512000,-34.45576106,0.00014887,2]
[421905329,1778319512000,-26.35,0.00013778,2]
[421905328,1778319512000,-302.45,0.00012757,2]
[421905331,1778319512000,-150.0,0.00014033,2]
[421905332,1778319512000,-55.15,0.00014815,2]
[421905333,1778319512000,-103.31235549,0.00014815,2]
[421905330,1778319512000,-123.65,0.00013778,2]
[421905338,1778319514000,-328.8,0.00013793,2]
[421905337,1778319514000,-157.6,0.00013793,2]
[421905336,1778319514000,-171.2,0.00013793,2]
[421905335,1778319514000,-328.8,0.00013793,2]
[421905340,1778319515000,-145.61813412,0.00013793,2]
[421905339,1778319515000,-13.6,0.00013793,2]
[421905341,1778319516000,358.444123,0.0002423,120]
[421905342,1778319516000,-159.21813412,0.00013793,2]
[421905343,1778319516000,-159.21813412,0.00015637,2]
[421905349,1778319517000,-159.21813412,0.00012757,2]
[421905348,1778319517000,511.17729405,0.00027353,120]
[421905346,1778319517000,-11.98186588,0.00012757,2]
[421905347,1778319517000,-147.23626824,0.00012757,2]
[421905345,1778319517000,179.222062,0.00024165,120]
[421905344,1778319517000,-159.21813412,0.00012757,2]
[421905350,1778319517000,-159.21813412,0.00012757,2]
[421905352,1778319608000,-494.37746352,0.00012757,2]
[421905354,1778319677000,165.0,0.00024275,120]
[421905353,1778319677000,165.0,0.00023119,120]
[421905355,1778319678000,165.0,0.00025489,120]
[421905356,1778319678000,-806.685,0.00013519,2]
[421905357,1778319678000,165.0,0.00026763,120]
[421905359,1778319678000,165.0,0.00029506,120]
[421905358,1778319678000,165.0,0.00028101,120]
[421905360,1778319759000,-193.0,0.00014033,2]
[421905361,1778319759000,-508.48428964,0.0001534,2]
[421905362,1778319759000,-105.20071036,0.00015638,2]
[421905363,1778319760000,-500.0,0.00013698,2]
[421905364,1778319760000,-306.685,0.00013698,2]
[421905366,1778319761000,-500.0,0.00013698,2]
[421905365,1778319761000,-193.315,0.00013698,2]
[421905367,1778319761000,-113.37,0.00013733,2]
[421905370,1778319761000,-151.0,0.00015638,2]
[421905371,1778319761000,-151.0,0.00015638,2]
[421905369,1778319761000,-45.79928964,0.00015638,2]
[421905373,1778319761000,-78.74428964,0.00015638,2]
[421905374,1778319761000,-151.0,0.00015638,2]
[421905375,1778319761000,-151.0,0.00015638,2]
[421905376,1778319761000,-151.0,0.00015638,2]
[421905377,1778319761000,-151.0,0.00015638,2]
[421905378,1778319761000,-123.94071036,0.00015638,2]
[421905372,1778319761000,-72.25571036,0.00015638,2]
[421905368,1778319761000,-386.63,0.00013733,2]
[421905383,1778319762000,-27.05928964,0.00015638,2]
[421905384,1778319762000,-93.88706786,0.00015638,2]
[421905382,1778319762000,-72.0536425,0.00014,2]
[421905380,1778319762000,-15.0536425,0.00013698,2]
[421905381,1778319762000,-177.9463575,0.00014,2]
[421905379,1778319762000,-193.0,0.00013698,2]
[421905386,1778319763000,-135.88706786,0.00015638,2]
[421905385,1778319763000,-57.11293214,0.00015638,2]
[421905388,1778319763000,-177.88706786,0.00015638,2]
[421905390,1778319763000,-139.61393943,0.00016,2]
[421905389,1778319763000,-53.38606057,0.00015638,2]
[421905387,1778319763000,-15.11293214,0.00015638,2]
[421905391,1778319764000,-193.0,0.00013651,2]
[421905394,1778319844000,430.73,9.705e-05,2]
[421905395,1778319846000,-158.47,0.00010216,2]
[421905396,1778319905000,165.0,0.0002641,120]
[421905397,1778319906000,165.0,0.0002773,120]
[421905398,1778319908000,165.0,0.00029117,120]
[421905401,1778320067000,-272.26,0.00010216,2]
[421905405,1778320136000,-237.73,0.00011238,2]
[421905404,1778320136000,-193.0,0.00011238,2]
[421905403,1778320136000,-430.73,0.00010727,2]
[421905406,1778320137000,-193.0,0.00011238,2]
[421905407,1778320137000,-237.73,0.00011749,2]
[421905410,1778320137000,-85.4619365,0.0001226,2]
[421905409,1778320137000,-152.2680635,0.0001216,2]
[421905408,1778320137000,-193.0,0.00011749,2]
[421905413,1778320138000,811.62492235,0.00010216,3]
[421905411,1778320138000,-345.2680635,0.0001226,2]
[421905412,1778320138000,-85.4619365,0.0001277,2]
[421905415,1778320139000,-85.4619365,0.00013281,2]
[421905414,1778320139000,-345.2680635,0.0001277,2]
[421905416,1778320152000,-345.2680635,0.00013281,2]
[421905443,1778320233000,-1854.2051867,0.00013651,2]
[421905442,1778320233000,4090.207265,7.945e-05,2]
[421905558,1778320315000,-430.73,0.00013792,2]
[421905559,1778320315000,-430.73,0.00014303,2]
[421905560,1778320315000,-462.63006196,0.00014739,2]
[421905557,1778320315000,-530.11512474,0.00013698,2]
[421905572,1778320316000,208.0536425,7.945e-05,2]
[421905571,1778320316000,-79.10721836,0.00015539,2]
[421905569,1778320316000,-500.0,0.00015539,2]
[421905568,1778320316000,-151.0,0.00015539,2]
[421905570,1778320316000,-151.0,0.00015539,2]
[421905567,1778320316000,-500.0,0.00015539,2]
[421905566,1778320316000,-151.0,0.00015539,2]
[421905565,1778320316000,-300.0,0.00015538,2]
[421905564,1778320316000,-22.09796834,0.00015325,2]
[421905563,1778320316000,-408.63203166,0.00015325,2]
[421905561,1778320316000,-1014.84315504,0.00014739,2]
[421905562,1778320316000,-430.73,0.00014814,2]
[421905574,1778320317000,-151.0,0.00015539,2]
[421905573,1778320317000,-420.89278164,0.00015539,2]
[421905575,1778320317000,-500.0,0.00015539,2]
[421905577,1778320317000,-500.0,0.00015539,2]
[421905578,1778320317000,-131.31240506,0.00015539,2]
[421905579,1778320317000,-1854.2051867,0.000135,2]
[421905576,1778320317000,-151.0,0.00015539,2]
[421905591,1778320318000,-151.0,0.00015539,2]
[421905590,1778320318000,-500.0,0.00015539,2]
[421905596,1778320318000,-500.0,0.00015539,2]
[421905589,1778320318000,-151.0,0.00015539,2]
[421905588,1778320318000,-500.0,0.00015539,2]
[421905586,1778320318000,-500.0,0.00015539,2]
[421905582,1778320318000,-1642.27504537,0.000135,2]
[421905585,1778320318000,-151.0,0.00015539,2]
[421905584,1778320318000,-500.0,0.00015539,2]
[421905583,1778320318000,-19.68759494,0.00015539,2]
[421905581,1778320318000,-449.55464804,0.000135,2]
[421905580,1778320318000,-1351.1837267,0.000135,2]
[421905587,1778320318000,-151.0,0.00015539,2]
[421905592,1778320318000,-151.0,0.00015539,2]
[421905593,1778320318000,-151.0,0.00015539,2]
[421905594,1778320318000,-500.0,0.00015539,2]
[421905595,1778320318000,-151.0,0.00015539,2]
[421905608,1778320318000,-500.0,0.00015539,2]
[421905601,1778320318000,-500.0,0.00015539,2]
[421905604,1778320318000,-151.0,0.00015539,2]
[421905603,1778320318000,-500.0,0.00015539,2]
[421905605,1778320318000,-500.0,0.00015539,2]
[421905606,1778320318000,-151.0,0.00015539,2]
[421905609,1778320318000,-151.0,0.00015539,2]
[421905602,1778320318000,-151.0,0.00015539,2]
[421905597,1778320318000,-151.0,0.00015539,2]
[421905599,1778320318000,-151.0,0.00015539,2]
[421905600,1778320318000,-151.0,0.00015539,2]
[421905607,1778320318000,-500.0,0.00015539,2]
[421905598,1778320318000,-500.0,0.00015539,2]
[421905651,1778320319000,-168.9,0.00017769,2]
[421905655,1778320319000,-152.76,0.00018048,2]
[421905654,1778320319000,-350.0,0.00018,2]
[421905650,1778320319000,-171.2,0.00017572,2]
[421905646,1778320319000,-999.99,0.00017381,2]
[421905647,1778320319000,-917.34,0.00017381,2]
[421905645,1778320319000,-150.99,0.00017381,2]
[421905648,1778320319000,-153.12137068,0.000175,2]
[421905643,1778320319000,-12154.2,0.00017381,2]
[421905649,1778320319000,-933.04,0.00017572,2]
[421905640,1778320319000,-430.73,0.00017368,2]
[421905644,1778320319000,-4640.77,0.00017381,2]
[421905652,1778320319000,-430.73,0.00017879,2]
[421905664,1778320319000,-1000.0,0.00018517,2]
[421905658,1778320319000,-1570.71,0.0001827,2]
[421905657,1778320319000,-166.83339655,0.000182,2]
[421905660,1778320319000,-430.73,0.00018389,2]
[421905659,1778320319000,-166.41,0.00018283,2]
[421905663,1778320319000,-1280.31846367,0.00018471,2]
[421905661,1778320319000,-166.83339655,0.000184,2]
[421905662,1778320319000,-886.4,0.0001841,2]
[421905668,1778320319000,-1352.0,0.00018518,2]
[421905667,1778320319000,-624.0,0.00018518,2]
[421905666,1778320319000,-925.0,0.00018518,2]
[421905665,1778320319000,-3539.0,0.00018518,2]
[421905672,1778320319000,-200.0,0.00018732,2]
[421905642,1778320319000,-9999.99,0.00017381,2]
[421905653,1778320319000,-166.83339655,0.00018,2]
[421905641,1778320319000,-433.15,0.00017381,2]
[421905619,1778320319000,-151.0,0.00015539,2]
[421905637,1778320319000,-299.99,0.0001719,4]
[421905669,1778320319000,-929.0,0.00018518,2]
[421905610,1778320319000,-500.0,0.00015539,2]
[421905611,1778320319000,-151.0,0.00015539,2]
[421905612,1778320319000,-151.0,0.00015539,2]
[421905614,1778320319000,-151.0,0.00015539,2]
[421905618,1778320319000,-151.0,0.00015539,2]
[421905617,1778320319000,-151.0,0.00015539,2]
[421905615,1778320319000,-151.0,0.00015539,2]
[421905616,1778320319000,-151.0,0.00015539,2]
[421905613,1778320319000,-151.0,0.00015539,2]
[421905620,1778320319000,-2080.17592889,0.00015539,2]
[421905622,1778320319000,-6054.34,0.00015539,2]
[421905621,1778320319000,-1214.63,0.00015539,2]
[421905639,1778320319000,-152.14,0.00017353,7]
[421905623,1778320319000,-19999.99,0.00015539,2]
[421905627,1778320319000,-2157.14243826,0.00016087,2]
[421905626,1778320319000,-160.38606057,0.00016,2]
[421905625,1778320319000,-430.73,0.00015835,2]
[421905628,1778320319000,-430.73,0.00016346,2]
[421905632,1778320319000,-255.58864702,0.0001691,2]
[421905629,1778320319000,-1296.53647533,0.00016635,2]
[421905631,1778320319000,-500.0,0.00016863,2]
[421905630,1778320319000,-430.73,0.00016857,2]
[421905634,1778320319000,-500.0,0.0001719,2]
[421905633,1778320319000,-306.70637643,0.0001691,2]
[421905636,1778320319000,-1326.98,0.0001719,2]
[421905635,1778320319000,-9999.99,0.0001719,2]
[421905638,1778320319000,-10395.6211,0.00017281,2]
[421905624,1778320319000,-154.09,0.00015572,2]
[421905671,1778320319000,-153.96303884,0.00018632,2]
[421905656,1778320319000,-10000.01,0.00018097,2]
[421905674,1778320319000,-1648.9462392,0.0001885,2]
[421905705,1778320319000,-1352.0,0.00021518,2]
[421905699,1778320319000,-349.0,0.00021,2]
[421905709,1778320319000,-1099.59,0.00022,2]
[421905707,1778320319000,-6047.0,0.00021518,2]
[421905710,1778320319000,-155.0,0.00022,2]
[421905708,1778320319000,-5000.0,0.00021918,2]
[421905711,1778320319000,-349.0,0.00022,2]
[421905716,1778320319000,-194.75744748,0.00022407,2]
[421905714,1778320319000,-2762.5812646,0.00022405,2]
[421905712,1778320319000,-214.37,0.00022029,7]
[421905715,1778320319000,-194.75744748,0.00022407,2]
[421905713,1778320319000,-886.4,0.00022353,2]
[421905717,1778320319000,-3522.22491963,0.0002254,2]
[421905706,1778320319000,-929.0,0.00021518,2]
[421905718,1778320319000,-152.76,0.0002256,2]
[421905721,1778320319000,-5000.0,0.000228,2]
[421905720,1778320319000,-3837.76913346,0.00022799,2]
[421905723,1778320319000,-3965.3675975,0.000228,2]
[421905722,1778320319000,-583.44406057,0.000228,2]
[421905724,1778320319000,-222.54205676,0.000228,2]
[421905725,1778320319000,-3592.82249893,0.000228,2]
[421905726,1778320319000,-1570.71,0.00022838,2]
[421905729,1778320319000,-267.54844763,0.00022899,2]
[421905732,1778320319000,-500.0,0.00022899,2]
[421905730,1778320319000,-221.21521402,0.00022899,2]
[421905727,1778320319000,-151.0,0.00022897,7]
[421905728,1778320319000,-500.0,0.00022899,2]
[421905731,1778320319000,-500.0,0.00022899,2]
[421905719,1778320319000,-692.422,0.00022799,2]
[421905701,1778320319000,-1623.55,0.00021376,2]
[421905670,1778320319000,-6047.0,0.00018518,2]
[421905703,1778320319000,-925.0,0.00021518,2]
[421905675,1778320319000,-430.73,0.000189,2]
[421905673,1778320319000,-833.05,0.00018808,2]
[421905676,1778320319000,-315.6,0.00019,2]
[421905677,1778320319000,-181.14,0.00019081,2]
[421905679,1778320319000,-2031.1,0.00019178,2]
[421905678,1778320319000,-266.6,0.00019136,2]
[421905681,1778320319000,-1623.55,0.00019433,2]
[421905680,1778320319000,-430.73,0.00019411,2]
[421905683,1778320319000,-501.03097108,0.00019664,2]
[421905684,1778320319000,-1623.55,0.00019919,2]
[421905685,1778320319000,-155.0,0.0002,2]
[421905682,1778320319000,-2047.2051867,0.00019566,2]
[421905686,1778320319000,-349.0,0.0002,2]
[421905733,1778320319000,-500.0,0.00022899,2]
[421905700,1778320319000,-500.0,0.00021288,2]
[421905690,1778320319000,-4021.95436466,0.00020401,2]
[421905693,1778320319000,-6046.70580371,0.00020601,3]
[421905702,1778320319000,-3539.0,0.00021518,2]
[421905695,1778320319000,-162.866,0.0002075,2]
[421905697,1778320319000,-1623.55,0.00020891,2]
[421905696,1778320319000,-710.50654426,0.00020758,2]
[421905698,1778320319000,-155.0,0.00021,2]
[421905704,1778320319000,-624.0,0.00021518,2]
[421905692,1778320319000,-1570.71,0.00020554,2]
[421905691,1778320319000,-1623.55,0.00020405,2]
[421905694,1778320319000,-1423.724,0.0002075,2]
[421905689,1778320319000,-886.4,0.00020381,2]
[421905688,1778320319000,-166.41,0.00020208,2]
[421905687,1778320319000,-400.0,0.0002,2]
[421905743,1778320320000,-2000.0,0.000229,2]
[421905744,1778320320000,-561.34188272,0.000229,2]
[421905742,1778320320000,-9183.99072097,0.000229,2]
[421905738,1778320320000,-429.0,0.000229,5]
[421905739,1778320320000,-340.0,0.000229,5]
[421905735,1778320320000,-466.19430041,0.00022899,2]
[421905737,1778320320000,-185.28972547,0.00022899,2]
[421905736,1778320320000,-274.43372574,0.00022899,2]
[421905734,1778320320000,-490.15216608,0.00022899,2]
[421905745,1778320320000,-152.90458066,0.0002289,2]
[421905740,1778320320000,-150.0,0.000229,2]
[421905747,1778320320000,-3305.50812973,0.000229,2]
[421905741,1778320320000,-476776.44327903,0.000229,2]
[421905749,1778320320000,-250.43,0.00022977,2]
[421905746,1778320320000,-663.72048755,0.000229,2]
[421905759,1778320320000,150.0,8.159e-05,2]
[421905758,1778320320000,150.0,8.079e-05,2]
[421905755,1778320320000,-380.52932165,0.00023,2]
[421905753,1778320320000,-150.0,0.00022999,2]
[421905757,1778320320000,-1830.73949245,0.00023,2]
[421905760,1778320320000,150.0,8.239e-05,2]
[421905754,1778320320000,-2059.94805333,0.00023,2]
[421905752,1778320320000,-1103.58302385,0.00022999,10]
[421905751,1778320320000,-425.27023751,0.00022977,2]
[421905750,1778320320000,-95.06976249,0.00022977,2]
[421905756,1778320320000,-392.65859885,0.00023,2]
[421905748,1778320320000,-151.0,0.000229,2]
[421905788,1778320321000,-1252.80254375,0.00024,2]
[421905805,1778320321000,-929.0,0.00024518,2]
[421905798,1778320321000,-2597.46164578,0.0002421,2]
[421905799,1778320321000,-2112.02,0.000243,2]
[421905797,1778320321000,-270.39,0.00024174,2]
[421905796,1778320321000,-548.64,0.00024137,2]
[421905794,1778320321000,-266.11,0.0002411,2]
[421905793,1778320321000,-392.18,0.0002411,2]
[421905790,1778320321000,-349.0,0.00024,2]
[421905800,1778320321000,-886.4,0.00024324,2]
[421905795,1778320321000,-343.76,0.0002411,2]
[421905801,1778320321000,-3837.7691334,0.00024406,2]
[421905807,1778320321000,-150.57011938,0.00024633,2]
[421905804,1778320321000,-624.0,0.00024518,2]
[421905803,1778320321000,-925.0,0.00024518,2]
[421905806,1778320321000,-6047.0,0.00024518,2]
[421905808,1778320321000,-150.0,0.00024633,2]
[421905809,1778320321000,-150.0,0.00024633,2]
[421905810,1778320321000,-150.0,0.00024633,2]
[421905813,1778320321000,-150.69261961,0.00024633,2]
[421905811,1778320321000,-150.0,0.00024633,2]
[421905815,1778320321000,-150.0,0.00024633,2]
[421905814,1778320321000,-150.0,0.00024633,2]
[421905812,1778320321000,-150.0,0.00024633,2]
[421905792,1778320321000,-1800.0,0.00024098,2]
[421905802,1778320321000,-3539.0,0.00024518,2]
[421905787,1778320321000,-3600.0,0.00024,2]
[421905771,1778320321000,-214.73073128,0.00023279,7]
[421905791,1778320321000,-600.0,0.00024024,2]
[421905767,1778320321000,-334.16,0.0002314,2]
[421905763,1778320321000,-1357.52146479,0.00023,2]
[421905764,1778320321000,-155.0,0.00023,2]
[421905762,1778320321000,-4750.60810964,0.00023,2]
[421905761,1778320321000,-235055.93375789,0.00023,2]
[421905765,1778320321000,-349.0,0.00023,2]
[421905766,1778320321000,-150.0,0.00023,10]
[421905768,1778320321000,-222.78,0.0002314,2]